fUST/lending_fUST_20250614
["ID","MTS","AMOUNT","RATE_DAILY","PERIOD"]
[365748462,1749874232446,-460.0,0.00021369,4]
[365748463,1749874232455,-460.0,0.00021369,4]
[365748464,1749874232464,-460.0,0.00021369,4]
[365748465,1749874232473,-440.37073899,0.00021395,2]
[365748466,1749874232482,-460.0,0.00021643,4]
[365748467,1749874232492,-660.56,0.00021643,4]
[365748468,1749874232502,-460.0,0.00021643,4]
[365748469,1749874232511,-381.18867809,0.00021643,4]
[365748470,1749874232521,-460.0,0.00021643,4]
[365748471,1749874232531,-460.0,0.00021643,4]
[365748472,1749874232540,-460.0,0.00021643,4]
[365748473,1749874232550,-617.26,0.00021643,4]
[365748474,1749874232560,-460.0,0.00021643,4]
[365748475,1749874232569,-460.0,0.00021643,4]
[365748476,1749874232579,-460.0,0.00021643,4]
[365748477,1749874232588,-645.5,0.00021643,4]
[365748478,1749874232598,-460.0,0.00021643,4]
[365748479,1749874232608,-598.46,0.00021643,4]
[365748480,1749874232618,-460.0,0.00021643,4]
[365748481,1749874232628,-460.0,0.00021643,4]
[365748482,1749874232638,-460.0,0.00021643,4]
[365748483,1749874232647,-1768.62,0.00021726,2]
[365748484,1749874232657,-380.06092932,0.00021728,4]
[365748485,1749874232667,-380.0,0.00021728,4]
[365748486,1749874232676,-370.0,0.00021728,4]
[365748487,1749874232686,-460.0,0.00021728,4]
[365748488,1749874232695,-346.01548637,0.00021728,4]
[365748489,1749874232705,-460.0,0.00021728,4]
[365748490,1749874232715,-548.38656646,0.00021728,4]
[365748491,1749874232724,-524.93907007,0.00021728,4]
[365748492,1749874232734,-167.86705708,0.00021765,2]
[365748493,1749874232743,-205.0,0.00021774,2]
[365748494,1749874232753,-632.07473898,0.00021873,2]
[365748495,1749874232762,-504.91224436,0.00021873,2]
[365748496,1749874232772,-435.99930167,0.00021885,4]
[365748497,1749874232782,-500.0,0.00021885,2]
[365748498,1749874232792,-410.0,0.00021885,4]
[365748499,1749874232801,-412.57,0.00021885,4]
[365748500,1749874232811,-420.0,0.00021885,4]
[365748501,1749874232821,-225.29263022,0.00021885,4]
[365748502,1749874232831,-460.0,0.00021885,4]
[365748503,1749874232840,-435.32673048,0.00021885,4]
[365748504,1749874232850,-460.0,0.00021885,4]
[365748505,1749874232859,-460.0,0.00021885,4]
[365748506,1749874232869,-460.0,0.00021885,2]
[365748507,1749874232880,-460.0,0.00021885,4]
[365748508,1749874232890,-192.20424478,0.00021885,4]
[365748509,1749874232901,-340.0,0.00021885,4]
[365748510,1749874232914,-350.0,0.00021885,4]
[365748511,1749874232923,-2044.76,0.00021886,2]
[365748512,1749874232933,-1720.63803648,0.000219,6]
[365748513,1749874232943,-460.0,0.00021917,4]
[365748514,1749874232954,-660.56,0.00021917,4]
[365748515,1749874232964,-460.0,0.00021917,4]
[365748516,1749874233136,-460.0,0.00021917,4]
[365748517,1749874233146,-460.0,0.00021917,4]
[365748518,1749874233156,-460.0,0.00021917,4]
[365748519,1749874233166,-617.26,0.00021917,4]
[365748520,1749874233176,-460.0,0.00021917,4]
[365748521,1749874233186,-460.0,0.00021917,4]
[365748522,1749874233196,-645.5,0.00021917,4]
[365748523,1749874233205,-460.0,0.00021917,4]
[365748524,1749874233215,-598.46,0.00021917,4]
[365748525,1749874233225,-460.0,0.00021917,4]
[365748526,1749874233234,-460.0,0.00021917,4]
[365748527,1749874233244,-460.0,0.00021917,4]
[365748528,1749874233254,-174.274,0.00022,2]
[365748529,1749874233264,-177.0,0.00022,2]
[365748530,1749874233274,-1720.63803639,0.00022003,6]
[365748531,1749874233285,-435.10002775,0.00022011,2]
[365748532,1749874233295,-634.61555834,0.00022011,2]
[365748533,1749874233304,-500.0,0.00022011,2]
[365748534,1749874233314,-500.0,0.00022011,2]
[365748535,1749874233324,-465.95176239,0.00022012,4]
[365748536,1749874233334,-461.93623943,0.00022012,4]
[365748537,1749874233343,-460.0,0.00022012,4]
[365748538,1749874233354,-460.0,0.00022012,4]
[365748539,1749874233363,-439.59948038,0.00022012,4]
[365748540,1749874233373,-460.0,0.00022012,4]
[365748541,1749874233383,-318.29269613,0.00022012,4]
[365748542,1749874233393,-1720.63803639,0.00022107,6]
[365748543,1749874233403,-460.0,0.00022159,4]
[365748544,1749874233413,-460.0,0.00022159,2]
[365748545,1749874233423,-545.45971485,0.0002219,2]
[365748546,1749874233433,-528.38651388,0.00022191,4]
[365748547,1749874233442,-660.56,0.00022191,4]
[365748548,1749874233452,-460.0,0.00022191,4]
[365748549,1749874233462,-460.0,0.00022191,4]
[365748550,1749874233472,-460.0,0.00022191,4]
[365748551,1749874233482,-460.0,0.00022191,4]
[365748552,1749874233491,-617.26,0.00022191,4]
[365748553,1749874233501,-460.0,0.00022191,4]
[365748554,1749874233511,-460.0,0.00022191,4]
[365748555,1749874233521,-645.5,0.00022191,4]
[365748556,1749874233531,-460.0,0.00022191,4]
[365748557,1749874233541,-598.46,0.00022191,4]
[365748558,1749874233551,-244.36340394,0.00022191,4]
[365748559,1749874233561,-460.0,0.00022191,4]
[365748560,1749874233571,-460.0,0.00022191,4]
[365748561,1749874233580,-188.31820889,0.000222,69]
[365748562,1749874233591,-1720.63803639,0.0002221,6]
[365748563,1749874233600,-1720.63803639,0.00022314,7]
[365748564,1749874233610,-207.4,0.00022362,2]
[365748565,1749874233620,-501.31177461,0.000224,2]
[365748566,1749874233630,-1720.63803639,0.00022417,7]
[365748567,1749874233640,-221.69,0.00022429,3]
[365748568,1749874233651,-460.0,0.00022433,2]
[365748569,1749874233661,-157.673035,0.00022439,2]
[365748570,1749874233671,-251.22472369,0.00022439,2]
[365748571,1749874233681,-1000.0,0.00022439,2]
[365748572,1749874233691,-5000.0,0.00022439,2]
[365748573,1749874233701,-500.0,0.00022439,2]
[365748574,1749874233710,-16000.0,0.00022439,2]
[365748575,1749874233720,-500.0,0.00022439,2]
[365748576,1749874233730,-6966.62620505,0.00022439,2]
[365748577,1749874233739,-3344.47837602,0.00022439,2]
[365748578,1749874233749,-886.74,0.00022455,3]
[365748579,1749874233759,-845.10789306,0.00022458,2]
[365748580,1749874233768,-835.41710878,0.00022458,2]
[365748581,1749874233778,-160.0,0.00022458,2]
[365748582,1749874233787,-213.28201367,0.00022458,2]
[365748583,1749874233797,-160.0,0.00022458,2]
[365748584,1749874233807,-160.0,0.00022458,2]
[365748585,1749874233817,-424.40141186,0.00022458,2]
[365748586,1749874233827,-160.0,0.00022458,2]
[365748587,1749874233837,-229.82479369,0.00022458,2]
[365748588,1749874233847,-12533.30537164,0.00022458,2]
[365748589,1749874233856,-160.0,0.00022458,2]
[365748590,1749874233867,-160.0,0.00022458,2]
[365748591,1749874233877,-660.56,0.00022465,4]
[365748592,1749874233887,-460.0,0.00022465,4]
[365748593,1749874233897,-460.0,0.00022465,4]
[365748594,1749874233910,-460.0,0.00022465,4]
[365748595,1749874233920,-460.0,0.00022465,4]
[365748596,1749874233930,-617.26,0.00022465,4]
[365748597,1749874233942,-460.0,0.00022465,4]
[365748598,1749874233953,-460.0,0.00022465,4]
[365748599,1749874233963,-645.5,0.00022465,4]
[365748600,1749874233972,-460.0,0.00022465,4]
[365748601,1749874233983,-598.46,0.00022465,4]
[365748602,1749874233993,-460.0,0.00022465,4]
[365748603,1749874234003,-460.0,0.00022465,4]
[365748604,1749874234012,-500.0,0.00022466,2]
[365748605,1749874234022,-299.34719731,0.00022466,2]
[365748606,1749874234031,-595.64430943,0.0002252,2]
[365748607,1749874234041,-1720.63803639,0.00022521,7]
[365748608,1749874234051,-331.22296802,0.00022559,2]
[365748609,1749874234061,-500.0,0.00022559,2]
[365748610,1749874234070,-1720.63803639,0.00022624,7]
[365748611,1749874234080,-460.0,0.00022707,2]
[365748612,1749874234089,-420.0,0.00022719,2]
[365748613,1749874234099,-420.0,0.0002272,2]
[365748614,1749874234108,-1720.63803639,0.00022728,7]
[365748615,1749874234118,-443.37,0.00022729,3]
[365748616,1749874234127,-660.56,0.00022739,4]
[365748617,1749874234136,-460.0,0.00022739,4]
[365748618,1749874234146,-460.0,0.00022739,4]
[365748619,1749874234155,-460.0,0.00022739,4]
[365748620,1749874234165,-460.0,0.00022739,4]
[365748621,1749874234175,-617.26,0.00022739,4]
[365748622,1749874234184,-460.0,0.00022739,4]
[365748623,1749874234194,-460.0,0.00022739,4]
[365748624,1749874234203,-645.5,0.00022739,4]
[365748625,1749874234214,-460.0,0.00022739,4]
[365748626,1749874234223,-598.46,0.00022739,4]
[365748627,1749874234233,-460.0,0.00022739,4]
[365748628,1749874234243,-460.0,0.00022739,4]
[365748629,1749874234253,-1720.63803639,0.00022831,8]
[365748630,1749874234263,-970.23987481,0.00022881,2]
[365748631,1749874234272,-250.0,0.00022933,2]
[365748632,1749874234282,-1720.63803639,0.00022934,8]
[365748633,1749874234292,-460.0,0.00022981,2]
[365748634,1749874234303,-5000.0,0.00022987,2]
[365748635,1749874234313,-16000.0,0.00022987,2]
[365748636,1749874234323,-500.0,0.00022999,2]
[365748637,1749874234332,-160.0,0.00022999,2]
[365748638,1749874234342,-3000.0,0.00023,2]
[365748639,1749874234356,-1259.9413,0.00023,14]
[365748640,1749874234365,-3000.0,0.0002301,2]
[365748641,1749874234375,-660.56,0.00023013,4]
[365748642,1749874234386,-460.0,0.00023013,4]
[365748643,1749874234395,-460.0,0.00023013,4]
[365748644,1749874234405,-460.0,0.00023013,4]
[365748645,1749874234415,-460.0,0.00023013,4]
[365748646,1749874234424,-617.26,0.00023013,4]
[365748647,1749874234434,-460.0,0.00023013,4]
[365748648,1749874234444,-460.0,0.00023013,4]
[365748649,1749874234454,-645.5,0.00023013,4]
[365748650,1749874234464,-460.0,0.00023013,4]
[365748651,1749874234474,-598.46,0.00023013,4]
[365748652,1749874234483,-460.0,0.00023013,4]
[365748653,1749874234493,-460.0,0.00023013,4]
[365748654,1749874234507,-205.0,0.0002302,2]
[365748655,1749874234516,-3000.0,0.0002302,2]
[365748656,1749874234526,-3000.0,0.0002303,2]
[365748657,1749874234536,-1720.63803639,0.00023038,8]
[365748658,1749874234546,-3000.0,0.0002304,2]
[365748659,1749874234556,-3000.0,0.0002305,2]
[365748660,1749874234566,-3000.0,0.0002306,2]
[365748661,1749874234576,-3000.0,0.0002307,2]
[365748662,1749874234585,-3000.0,0.0002308,2]
[365748663,1749874234595,-3000.0,0.0002309,2]
[365748664,1749874234604,-3000.0,0.000231,2]
[365748665,1749874234613,-3000.0,0.0002311,2]
[365748666,1749874234623,-3000.0,0.0002312,2]
[365748667,1749874234632,-3000.0,0.0002313,2]
[365748668,1749874234641,-970.23987477,0.00023136,2]
[365748669,1749874234651,-3000.0,0.0002314,2]
[365748670,1749874234661,-1720.63803639,0.00023141,8]
[365748671,1749874234670,-3000.0,0.0002315,2]
[365748672,1749874234679,-3000.0,0.0002316,2]
[365748673,1749874234689,-3000.0,0.0002317,2]
[365748674,1749874234698,-3178.706669,0.0002318,2]
[365748675,1749874234707,-205.0,0.00023208,2]
[365748676,1749874234716,-1720.63803639,0.00023245,8]
[365748677,1749874234725,-460.0,0.00023255,2]
[365748678,1749874234734,-660.56,0.00023287,4]
[365748679,1749874234744,-460.0,0.00023287,4]
[365748680,1749874234754,-460.0,0.00023287,4]
[365748681,1749874234763,-460.0,0.00023287,4]
[365748682,1749874234773,-460.0,0.00023287,4]
[365748683,1749874234782,-617.26,0.00023287,4]
[365748684,1749874234791,-460.0,0.00023287,4]
[365748685,1749874234801,-460.0,0.00023287,4]
[365748686,1749874234810,-645.5,0.00023287,4]
[365748687,1749874234820,-460.0,0.00023287,4]
[365748688,1749874234830,-598.46,0.00023287,4]
[365748689,1749874234839,-369.50064286,0.00023287,4]
[365748690,1749874234849,-460.0,0.00023287,4]
[365748691,1749874234858,-153.0,0.00023288,2]
[365748692,1749874234868,-153.0,0.00023288,2]
[365748693,1749874234878,-573.7859869,0.00023288,2]
[365748694,1749874234887,-176.9937618,0.00023288,2]
[365748695,1749874234896,-153.0,0.00023288,2]
[365748696,1749874234908,-153.0,0.00023288,2]
[365748697,1749874234917,-153.0,0.00023288,2]
[365748698,1749874234926,-153.0,0.00023288,2]
[365748699,1749874234935,-158.8714084,0.00023288,2]
[365748700,1749874234945,-153.0,0.00023288,2]
[365748701,1749874234954,-153.0,0.00023288,2]
[365748702,1749874234964,-156.5761506,0.00023288,2]
[365748703,1749874234973,-153.0,0.00023288,2]
[365748704,1749874234984,-156.5232587,0.00023288,2]
[365748705,1749874234994,-1539.38877,0.00023324,3]
[365748706,1749874235004,-1720.63803639,0.00023348,9]
[365748707,1749874235014,-970.23987477,0.00023391,2]
[365748708,1749874235024,-405.0,0.00023436,2]
[365748709,1749874235034,-405.0,0.00023436,2]
[365748710,1749874235043,-1720.63803639,0.00023452,9]
[365748711,1749874235053,-205.0,0.00023467,2]
[365748712,1749874235062,-460.0,0.00023529,2]
[365748713,1749874235072,-4752.06678053,0.00023535,2]
[365748719,1749874237940,-556.06826592,0.00022429,3]
[365748733,1749874242852,-109.00173408,0.00022429,3]
[365748734,1749874242863,-167.86705708,0.00022535,2]
[365748735,1749874242874,-194.53940838,0.00022829,2]
[365748736,1749874242884,-500.0,0.00023089,2]
[365748737,1749874242894,-500.0,0.00023089,2]
[365748738,1749874242906,-208.78562287,0.00023089,2]
[365748739,1749874242917,-500.0,0.00023089,2]
[365748740,1749874242927,-500.0,0.00023089,2]
[365748741,1749874242936,-341.54978038,0.00023089,2]
[365748742,1749874242947,-167.86705708,0.00023306,2]
[365748743,1749874242956,-247.93321947,0.00023535,2]
[365748744,1749874242966,-2121.28148171,0.00023535,2]
[365748753,1749874246322,-1838.95475835,0.00023535,2]
[365748756,1749874333958,-150.0,0.0002105,2]
[365748757,1749874333979,-300.0,0.00021094,2]
[365748758,1749874334004,-458.87724568,0.00021095,4]
[365748759,1749874334024,-460.0,0.00021095,4]
[365748760,1749874334045,-443.3298088,0.00021095,4]
[365748761,1749874334065,-460.0,0.00021095,4]
[365748762,1749874334088,-460.0,0.00021095,4]
[365748763,1749874334112,-558.7,0.00021095,4]
[365748764,1749874334132,-474.08178349,0.00021095,4]
[365748765,1749874334153,-460.0,0.00021095,4]
[365748766,1749874334175,-460.0,0.00021095,4]
[365748767,1749874334195,-420.0,0.00021095,4]
[365748768,1749874334216,-242.01116203,0.00021095,4]
[365748771,1749874711405,1330.06423093,0.00019967,2]
[365748772,1749874711428,19827.68328477,0.00019967,2]
[365748773,1749874713834,3372.36111523,0.00019967,2]
[365748774,1749874713856,6627.63888477,0.00019967,2]
[365748775,1749874732150,-286.97532,0.00020086,2]
[365748776,1749874732173,-5000.0,0.00020234,2]
[365748777,1749874732194,-1569.4592273,0.00020438,2]
[365748778,1749874732214,-321.9092121,0.00020463,2]
[365748779,1749874732234,-167.86705708,0.00020995,2]
[365748780,1749874732254,-150.0,0.0002106,2]
[365748781,1749874732277,-300.0,0.00021094,2]
[365748782,1749874732300,-300.0,0.00021094,2]
[365748783,1749874732322,-460.0,0.00021095,2]
[365748784,1749874732345,-393.0316984,0.00021095,4]
[365748785,1749874732367,-460.0,0.00021095,4]
[365748786,1749874732388,-460.0,0.00021095,4]
[365748787,1749874732411,-457.34451038,0.00021095,4]
[365748788,1749874732438,-460.0,0.00021095,4]
[365748789,1749874732462,-414.39149977,0.00021095,4]
[365748790,1749874732485,-445.30521594,0.00021095,4]
[365748791,1749874732508,-460.0,0.00021095,4]
[365748792,1749874732529,-441.64948714,0.00021095,4]
[365748793,1749874732550,-477.18598229,0.00021095,4]
[365748794,1749874732571,-460.0,0.00021095,4]
[365748795,1749874732592,-278.66375595,0.00021095,4]
[365748796,1749874732613,-460.0,0.00021095,4]
[365748797,1749874732634,-460.0,0.00021095,4]
[365748798,1749874732653,-460.0,0.00021095,4]
[365748799,1749874732675,-420.48687097,0.00021095,4]
[365748800,1749874732695,-470.94582837,0.00021095,4]
[365748801,1749874732718,-535.42,0.00021095,4]
[365748802,1749874732875,-460.0,0.00021095,4]
[365748803,1749874732901,-460.0,0.00021095,4]
[365748804,1749874732924,-460.0,0.00021095,4]
[365748805,1749874732947,-460.0,0.00021095,4]
[365748806,1749874732970,-460.0,0.00021095,4]
[365748807,1749874732991,-238.50468992,0.00021095,4]
[365748808,1749874733011,-481.796739,0.00021095,4]
[365748809,1749874733031,-431.0064386,0.00021095,4]
[365748810,1749874733054,-460.0,0.00021095,4]
[365748811,1749874733075,-470.45100791,0.00021095,4]
[365748812,1749874733095,-504.18078431,0.00021095,4]
[365748813,1749874733115,-529.89172678,0.00021095,4]
[365748814,1749874733134,-291.70460531,0.00021095,4]
[365748815,1749874733154,-460.0,0.00021095,4]
[365748816,1749874733174,-460.0,0.00021095,4]
[365748817,1749874733193,-460.0,0.00021095,4]
[365748818,1749874733213,-438.23,0.00021095,4]
[365748819,1749874733234,-460.0,0.00021095,4]
[365748820,1749874733254,-460.0,0.00021095,4]
[365748821,1749874733289,-460.0,0.00021095,4]
[365748822,1749874733312,-461.42081182,0.00021095,4]
[365748823,1749874733335,-460.0,0.00021095,4]
[365748824,1749874733358,-460.0,0.00021095,4]
[365748825,1749874733382,-460.0,0.00021095,4]
[365748826,1749874733406,-369.88593028,0.00021095,4]
[365748827,1749874733429,-449.69831835,0.00021095,4]
[365748828,1749874733451,-460.0,0.00021095,4]
[365748829,1749874733475,-460.0,0.00021095,4]
[365748830,1749874733498,-451.33327905,0.00021095,4]
[365748831,1749874733519,-460.0,0.00021095,4]
[365748832,1749874733542,-460.0,0.00021095,4]
[365748833,1749874733565,-2270.56,0.00021095,4]
[365748834,1749874733590,-460.0,0.00021095,4]
[365748835,1749874733612,-466.97,0.00021095,4]
[365748836,1749874733634,-460.0,0.00021095,4]
[365748837,1749874733655,-460.0,0.00021095,4]
[365748838,1749874733677,-460.0,0.00021095,4]
[365748839,1749874733700,-460.0,0.00021095,4]
[365748840,1749874733723,-460.0,0.00021095,4]
[365748841,1749874733745,-497.05156554,0.00021095,4]
[365748842,1749874733766,-460.0,0.00021095,4]
[365748843,1749874733789,-460.0,0.00021095,4]
[365748844,1749874733809,-460.0,0.00021095,4]
[365748845,1749874733830,-460.0,0.00021095,4]
[365748846,1749874733851,-482.44018328,0.00021095,4]
[365748847,1749874733872,-460.0,0.00021095,4]
[365748848,1749874733892,-380.0,0.00021095,4]
[365748849,1749874733913,-460.0,0.00021095,4]
[365748850,1749874733934,-410.0,0.00021095,4]
[365748851,1749874733956,-460.0,0.00021095,4]
[365748852,1749874733977,-345.36269342,0.00021095,4]
[365748853,1749874734001,-460.0,0.00021095,4]
[365748854,1749874734025,-460.0,0.00021095,4]
[365748855,1749874734047,-460.0,0.00021095,4]
[365748856,1749874734069,-460.0,0.00021095,4]
[365748857,1749874734090,-451.41859367,0.00021095,4]
[365748858,1749874734112,-460.0,0.00021095,2]
[365748859,1749874734133,-420.0,0.00021095,4]
[365748860,1749874734154,-438.06795356,0.00021095,4]
[365748861,1749874734176,-460.0,0.00021095,4]
[365748862,1749874734197,-479.66826203,0.00021095,4]
[365748863,1749874734221,-468.81052947,0.00021095,4]
[365748864,1749874734242,-393.74537622,0.00021095,4]
[365748865,1749874734268,-460.0,0.00021095,4]
[365748866,1749874734291,-460.0,0.00021095,4]
[365748867,1749874734314,-460.0,0.00021095,4]
[365748868,1749874734334,-460.0,0.00021095,4]
[365748869,1749874734355,-420.0,0.00021095,4]
[365748870,1749874734377,-460.0,0.00021095,4]
[365748871,1749874734400,-460.0,0.00021095,4]
[365748872,1749874734421,-475.75378105,0.00021095,4]
[365748873,1749874734443,-460.0,0.00021095,4]
[365748874,1749874734464,-460.0,0.00021095,4]
[365748875,1749874734486,-426.13986795,0.00021095,4]
[365748876,1749874734508,-460.0,0.00021095,4]
[365748877,1749874734530,-273.27119679,0.00021095,4]
[365748879,1749874862388,-187.0,0.00020301,2]
[365748880,1749874924084,5000.0,0.0002,2]
[365748881,1749874939305,5000.0,0.0002,2]
[365748882,1749874954789,5000.0,0.0002,2]
[365748883,1749874970046,1572.40551523,0.0002,2]
[365748884,1749874970070,3427.59448477,0.0002,2]
[365748885,1749874985595,5000.0,0.0002,2]
[365748886,1749875000735,5000.0,0.0002,2]
[365748887,1749875016509,5000.0,0.0002,2]
[365748888,1749875031810,4772.44991523,0.0002,2]
[365748889,1749875031833,227.55008477,0.0002,2]
[365748890,1749875048204,5000.0,0.0002,2]
[365748891,1749875063975,5000.0,0.0002,2]
[365748892,1749875079341,5000.0,0.0002,2]
[365748893,1749875095137,5000.0,0.0002,2]
[365748895,1749875110411,2972.49431523,0.0002,2]
[365748896,1749875110434,2027.50568477,0.0002,2]
[365748897,1749875125619,5000.0,0.0002,2]
[365748898,1749875140931,162.609964,0.00013699,2]
[365748899,1749875141945,5000.0,0.0002,2]
[365748901,1749875157161,5000.0,0.0002,2]
[365748903,1749875171830,150.0,0.00018995,2]
[365748906,1749875172926,5000.0,0.0002,2]
[365748907,1749875188710,859.92875123,0.0002,2]
[365748908,1749875188733,4140.07124877,0.0002,2]
[365748909,1749875191582,-186.4796638,0.0002004,2]
[365748910,1749875204503,5000.0,0.0002,2]
[365748911,1749875220951,5000.0,0.0002,2]
[365748912,1749875236333,5000.0,0.0002,2]
[365748913,1749875239095,-63.0,0.00020301,2]
[365748914,1749875239116,-174.71491755,0.00020994,2]
[365748915,1749875239138,-723.0,0.00021094,2]
[365748916,1749875239160,-300.0,0.00021094,2]
[365748917,1749875239183,-300.0,0.00021094,2]
[365748918,1749875239206,-3.41174672,0.00021095,4]
[365748919,1749875244087,-183.31705649,0.00021095,4]
[365748920,1749875244107,-309.35043358,0.00021095,4]
[365748921,1749875248219,-150.64956642,0.00021095,4]
[365748922,1749875248240,-431.53964893,0.00021095,4]
[365748923,1749875248261,-418.97559352,0.00021095,4]
[365748924,1749875248281,-578.20090779,0.00021095,4]
[365748925,1749875248306,-466.81009867,0.00021095,4]
[365748926,1749875248326,-460.0,0.00021095,4]
[365748927,1749875248347,-460.0,0.00021095,4]
[365748928,1749875248368,-466.16836995,0.00021095,4]
[365748929,1749875248390,-460.0,0.00021095,4]
[365748930,1749875248413,-460.0,0.00021095,4]
[365748931,1749875248434,-183.5050616,0.00021095,4]
[365748932,1749875248456,-415.03402502,0.00021095,4]
[365748933,1749875248477,-453.64935096,0.00021095,4]
[365748934,1749875248499,-454.44261084,0.00021095,4]
[365748935,1749875248520,-456.33358987,0.00021095,4]
[365748936,1749875248542,-460.0,0.00021095,4]
[365748937,1749875248564,-460.0,0.00021095,4]
[365748938,1749875248584,-460.0,0.00021095,4]
[365748939,1749875248606,-470.62334523,0.00021095,4]
[365748940,1749875248627,-440.0,0.00021095,4]
[365748941,1749875248649,-460.0,0.00021095,4]
[365748942,1749875248670,-411.26193001,0.00021095,4]
[365748943,1749875248690,-460.0,0.00021095,4]
[365748944,1749875248712,-460.0,0.00021095,4]
[365748945,1749875248732,-427.39492415,0.00021095,4]
[365748946,1749875248752,-301.81795479,0.00021095,4]
[365748947,1749875248776,-460.0,0.00021095,4]
[365748948,1749875248797,-461.14280919,0.00021095,4]
[365748949,1749875248819,-462.46120439,0.00021095,4]
[365748950,1749875248842,-298.08242261,0.00021095,4]
[365748951,1749875270314,4059.97315123,0.00018,2]
[365748952,1749875270339,23200.0444,0.00018,2]
[365748953,1749875270362,23200.0444,0.00018,2]
[365748954,1749875270388,23200.0444,0.00018,2]
[365748955,1749875270415,23200.0444,0.00018,2]
[365748956,1749875270437,10575.44508446,0.00018,2]
[365748961,1749875313381,-666.0,0.000203,2]
[365748962,1749875313405,-300.0,0.00020391,2]
[365748963,1749875313432,-16424.5072221,0.00020392,2]
[365748964,1749875313456,-4894.4927779,0.00020884,2]
[365748965,1749875317820,4064.77429328,0.00018,2]
[365748966,1749875322813,8559.82502226,0.00015,2]
[365748967,1749875322836,2256.00673618,0.00015,2]
[365748972,1749875325220,14882.94493558,0.0001,2]
[365748979,1749875403099,262.1880352,0.0002,2]
[365749017,1749875432007,-105.5072221,0.00020884,2]
[365749019,1749875432018,-300.0,0.00021094,2]
[365749020,1749875432027,-300.0,0.00021094,2]
[365749021,1749875432037,-300.0,0.00021094,2]
[365749022,1749875432047,-300.0,0.00021094,2]
[365749023,1749875432056,-500.0,0.00021095,4]
[365749024,1749875432066,-460.0,0.00021095,4]
[365749025,1749875432076,-460.0,0.00021095,4]
[365749026,1749875432087,-460.0,0.00021095,4]
[365749027,1749875432097,-460.0,0.00021095,2]
[365749028,1749875432107,-460.0,0.00021095,4]
[365749029,1749875432117,-475.68749261,0.00021095,4]
[365749030,1749875432127,-365.8611539,0.00021095,4]
[365749031,1749875432137,-165.13541106,0.00021095,4]
[365749032,1749875432147,-469.54275538,0.00021095,4]
[365749033,1749875432156,-460.0,0.00021095,4]
[365749034,1749875432166,-460.0,0.00021095,4]
[365749035,1749875432176,-460.0,0.00021095,4]
[365749036,1749875432186,-304.70419175,0.00021095,4]
[365749062,1749875437955,-177.75826318,0.00021095,4]
[365749063,1749875437964,-460.0,0.00021095,4]
[365749064,1749875437974,-443.95144606,0.00021095,4]
[365749065,1749875437984,-460.0,0.00021095,4]
[365749066,1749875437993,-2357.79,0.00021095,4]
[365749067,1749875438003,-460.0,0.00021095,4]
[365749068,1749875438012,-460.0,0.00021095,4]
[365749069,1749875438023,-460.0,0.00021095,4]
[365749070,1749875438034,-443.25531892,0.00021095,4]
[365749071,1749875438044,-460.0,0.00021095,4]
[365749072,1749875438054,-460.0,0.00021095,4]
[365749073,1749875438063,-460.0,0.00021095,4]
[365749074,1749875438073,-1268.43719917,0.00021095,2]